[Event "*** Titled Tuesday Blitz"]
[Site "Chess.com"]
[Date "2020.05.12"]
[Round "4"]
[White "sandropozo"]
[Black "Belka1989"]
[Result "1-0"]
[WhiteElo "2560"]
[BlackElo "2128"]
[TimeControl "180+1"]
[EndTime "10:37:23 PDT"]
[Termination "sandropozo won by resignation"]

1. d4 {[%clk 0:03:00.9]} 1... Nf6 {[%clk 0:03:00.4]} 2. Nf3 {[%clk 0:02:59.3]}
2... e6 {[%clk 0:02:57.5]} 3. Bf4 {[%clk 0:02:58.7]} 3... c5 {[%clk 0:02:56.9]}
4. e3 {[%clk 0:02:58]} 4... d5 {[%clk 0:02:56.3]} 5. Nbd2 {[%clk 0:02:57.7]}
5... Nc6 {[%clk 0:02:55.8]} 6. c3 {[%clk 0:02:57.5]} 6... Nh5 {[%clk 0:02:55.2]}
7. Bg5 {[%clk 0:02:52.8]} 7... f6 {[%clk 0:02:55.6]} 8. Bh4 {[%clk 0:02:50.2]}
8... g6 {[%clk 0:02:56]} 9. Bd3 {[%clk 0:02:44.2]} 9... Qb6 {[%clk 0:02:49.5]}
10. Rb1 {[%clk 0:02:40.1]} 10... Be7 {[%clk 0:02:45.2]} 11. O-O {[%clk 0:02:33]}
11... g5 {[%clk 0:02:35.5]} 12. Nxg5 {[%clk 0:02:30.8]} 12... Ng7 {[%clk
0:02:26.3]} 13. Nxh7 {[%clk 0:02:02.3]} 13... Kf7 {[%clk 0:02:19]} 14. Qf3
{[%clk 0:01:31.6]} 14... f5 {[%clk 0:01:59.2]} 15. Bxe7 {[%clk 0:01:22.3]} 15...
Nxe7 {[%clk 0:02:00.1]} 16. Ng5+ {[%clk 0:01:22.1]} 16... Kf6 {[%clk 0:01:54.7]}
17. Qg3 {[%clk 0:01:08.6]} 17... Ng6 {[%clk 0:01:44]} 18. Nh3 {[%clk 0:00:43.3]}
18... Rh5 {[%clk 0:01:28.7]} 19. Be2 {[%clk 0:00:42.7]} 19... Rh7 {[%clk
0:01:22.1]} 20. Qg5+ {[%clk 0:00:40.1]} 20... Kf7 {[%clk 0:01:21.5]} 21. Nf3
{[%clk 0:00:35.4]} 21... Bd7 {[%clk 0:01:10.8]} 22. Nf4 {[%clk 0:00:25]} 22...
Nxf4 {[%clk 0:01:07.6]} 23. exf4 {[%clk 0:00:25.4]} 23... Rhh8 {[%clk
0:00:48.1]} 24. Ne5+ {[%clk 0:00:25]} 24... Ke8 {[%clk 0:00:47.7]} 25. Qxg7
{[%clk 0:00:24.7]} 1-0

[Event "*** Titled Tuesday Blitz"]
[Site "Chess.com"]
[Date "2020.05.12"]
[Round "4"]
[White "mfwagnerpeixoto"]
[Black "2L8IWUN"]
[Result "0-1"]
[WhiteElo "2252"]
[BlackElo "2441"]
[TimeControl "180+1"]
[EndTime "10:37:25 PDT"]
[Termination "2L8IWUN won by resignation"]

1. d4 {[%clk 0:03:00.9]} 1... Nf6 {[%clk 0:03:00]} 2. c4 {[%clk 0:02:59.9]} 2...
e6 {[%clk 0:03:00.7]} 3. Nc3 {[%clk 0:02:58.2]} 3... d5 {[%clk 0:03:01.6]} 4.
Nf3 {[%clk 0:02:57.2]} 4... Nbd7 {[%clk 0:03:02.4]} 5. Bf4 {[%clk 0:02:56.4]}
5... dxc4 {[%clk 0:03:02.4]} 6. e3 {[%clk 0:02:55.6]} 6... b5 {[%clk 0:03:03.1]}
7. Nxb5 {[%clk 0:02:53]} 7... Bb4+ {[%clk 0:03:03.8]} 8. Nc3 {[%clk 0:02:49.8]}
8... Nd5 {[%clk 0:03:04.3]} 9. Qc2 {[%clk 0:02:47.5]} 9... N7b6 {[%clk
0:03:01.7]} 10. Be2 {[%clk 0:02:41.7]} 10... Nxf4 {[%clk 0:03:00.5]} 11. exf4
{[%clk 0:02:41]} 11... O-O {[%clk 0:02:59]} 12. O-O {[%clk 0:02:39.4]} 12... Bb7
{[%clk 0:02:59.3]} 13. Rad1 {[%clk 0:02:34.2]} 13... a5 {[%clk 0:02:29.6]} 14.
g3 {[%clk 0:02:26.3]} 14... a4 {[%clk 0:02:24]} 15. a3 {[%clk 0:02:25.3]} 15...
Bxc3 {[%clk 0:02:14.4]} 16. Qxc3 {[%clk 0:02:22]} 16... Qd5 {[%clk 0:02:10.1]}
17. Rfe1 {[%clk 0:02:09.9]} 17... Rfd8 {[%clk 0:01:38.3]} 18. Qe3 {[%clk
0:02:06.5]} 18... h6 {[%clk 0:01:35.1]} 19. Qe5 {[%clk 0:02:04.2]} 19... Ra5
{[%clk 0:01:31.8]} 20. Qxc7 {[%clk 0:01:56.5]} 20... Rb5 {[%clk 0:01:27.4]} 21.
Rd2 {[%clk 0:01:03.9]} 21... Rc8 {[%clk 0:01:12]} 22. Qe5 {[%clk 0:01:01.3]}
22... Qxf3 {[%clk 0:01:04.3]} 23. Bxf3 {[%clk 0:00:59.9]} 23... Rxe5 {[%clk
0:01:04.6]} 24. dxe5 {[%clk 0:00:55.9]} 24... Bxf3 {[%clk 0:01:03.4]} 25. Rc1
{[%clk 0:00:53.3]} 25... Bd5 {[%clk 0:01:00.1]} 26. Rc3 {[%clk 0:00:48.6]} 26...
Nd7 {[%clk 0:00:59.7]} 27. Kf1 {[%clk 0:00:38.9]} 27... Nc5 {[%clk 0:00:59.6]}
28. Ke1 {[%clk 0:00:31.8]} 28... Ne4 {[%clk 0:00:58.2]} 0-1

[Event "*** Titled Tuesday Blitz"]
[Site "Chess.com"]
[Date "2020.05.12"]
[Round "4"]
[White "Lennis93"]
[Black "Ashedu66"]
[Result "1-0"]
[WhiteElo "2373"]
[BlackElo "2121"]
[TimeControl "180+1"]
[EndTime "10:37:26 PDT"]
[Termination "Lennis93 won on time"]

1. e4 {[%clk 0:03:00.9]} 1... e5 {[%clk 0:02:36.9]} 2. Nf3 {[%clk 0:03:00.4]}
2... Nc6 {[%clk 0:02:36.4]} 3. Nc3 {[%clk 0:02:59.3]} 3... Nf6 {[%clk
0:02:35.8]} 4. Bb5 {[%clk 0:02:58.9]} 4... Bb4 {[%clk 0:02:35]} 5. O-O {[%clk
0:02:55.4]} 5... O-O {[%clk 0:02:34.5]} 6. d3 {[%clk 0:02:55.2]} 6... d6 {[%clk
0:02:34.4]} 7. Bg5 {[%clk 0:02:54.2]} 7... Ne7 {[%clk 0:02:34.4]} 8. Bxf6 {[%clk
0:02:53.5]} 8... gxf6 {[%clk 0:02:33.9]} 9. Nh4 {[%clk 0:02:52.3]} 9... c6
{[%clk 0:02:32.2]} 10. Ba4 {[%clk 0:02:51.4]} 10... Ng6 {[%clk 0:02:18.5]} 11.
Nf5 {[%clk 0:02:46]} 11... Bxc3 {[%clk 0:02:10.5]} 12. bxc3 {[%clk 0:02:42.8]}
12... Kh8 {[%clk 0:01:58.9]} 13. g3 {[%clk 0:02:33.1]} 13... Rg8 {[%clk
0:01:44]} 14. Nh6 {[%clk 0:02:31]} 14... Rg7 {[%clk 0:01:41.7]} 15. Bb3 {[%clk
0:02:30.6]} 15... Be6 {[%clk 0:01:34.9]} 16. Kh1 {[%clk 0:02:29.1]} 16... Qd7
{[%clk 0:01:13.5]} 17. Qf3 {[%clk 0:02:28.2]} 17... Qe7 {[%clk 0:00:52.7]} 18.
a4 {[%clk 0:02:26.7]} 18... Rd8 {[%clk 0:00:46.2]} 19. a5 {[%clk 0:02:26.3]}
19... a6 {[%clk 0:00:45.2]} 20. Ra4 {[%clk 0:01:49.2]} 20... c5 {[%clk
0:00:26.5]} 21. Bd5 {[%clk 0:01:45.1]} 21... Bxd5 {[%clk 0:00:20.1]} 22. exd5
{[%clk 0:01:44.2]} 22... Rc8 {[%clk 0:00:14.3]} 23. c4 {[%clk 0:01:39.3]} 23...
Rc7 {[%clk 0:00:12]} 24. Ra3 {[%clk 0:01:39]} 24... Qd8 {[%clk 0:00:11.2]} 25.
Rb3 {[%clk 0:01:38]} 25... Nf8 {[%clk 0:00:11]} 26. Rfb1 {[%clk 0:01:37.1]}
26... Nd7 {[%clk 0:00:05.8]} 27. Rxb7 {[%clk 0:01:33.5]} 27... Nf8 {[%clk
0:00:01.2]} 28. Rb8 {[%clk 0:01:30.5]} 28... Rc8 {[%clk 0:00:01.2]} 29. Rxc8
{[%clk 0:01:29.2]} 29... Qxc8 {[%clk 0:00:01.4]} 30. Qxf6 {[%clk 0:01:28.9]} 1-0

[Event "*** Titled Tuesday Blitz"]
[Site "Chess.com"]
[Date "2020.05.12"]
[Round "4"]
[White "DDTerziev04"]
[Black "Lion-Al-Messi"]
[Result "0-1"]
[WhiteElo "2278"]
[BlackElo "2452"]
[TimeControl "180+1"]
[EndTime "10:37:27 PDT"]
[Termination "Lion-Al-Messi won by resignation"]

1. e4 {[%clk 0:03:00.9]} 1... e6 {[%clk 0:02:58.1]} 2. d4 {[%clk 0:02:59.6]}
2... d5 {[%clk 0:02:57.7]} 3. Nc3 {[%clk 0:03:00]} 3... Nf6 {[%clk 0:02:55.1]}
4. e5 {[%clk 0:02:59.1]} 4... Nfd7 {[%clk 0:02:55.2]} 5. f4 {[%clk 0:02:58.5]}
5... c5 {[%clk 0:02:55.8]} 6. Be3 {[%clk 0:02:57.9]} 6... cxd4 {[%clk
0:02:55.1]} 7. Bxd4 {[%clk 0:02:56.6]} 7... Nc6 {[%clk 0:02:54.8]} 8. Nf3 {[%clk
0:02:56.6]} 8... Nxd4 {[%clk 0:02:54.3]} 9. Nxd4 {[%clk 0:02:55.8]} 9... a6
{[%clk 0:02:54]} 10. Qd2 {[%clk 0:02:53.5]} 10... Bc5 {[%clk 0:02:53.5]} 11. Nb3
{[%clk 0:02:45.4]} 11... Be7 {[%clk 0:02:41.3]} 12. Bd3 {[%clk 0:02:41.4]} 12...
b5 {[%clk 0:02:33.4]} 13. Ne2 {[%clk 0:02:35.6]} 13... Bb7 {[%clk 0:02:32.6]}
14. Ned4 {[%clk 0:02:30.5]} 14... Rc8 {[%clk 0:02:31.1]} 15. O-O {[%clk
0:02:17.2]} 15... g6 {[%clk 0:02:30.7]} 16. Kh1 {[%clk 0:02:09.9]} 16... Qc7
{[%clk 0:02:26.6]} 17. c3 {[%clk 0:02:08]} 17... Nb6 {[%clk 0:02:25.9]} 18. Qe2
{[%clk 0:02:01]} 18... Nc4 {[%clk 0:02:25.2]} 19. Rab1 {[%clk 0:01:48.5]} 19...
h5 {[%clk 0:02:22]} 20. Qc2 {[%clk 0:01:35.5]} 20... Ne3 {[%clk 0:02:18.9]} 21.
Qf2 {[%clk 0:01:27.7]} 21... Nxf1 {[%clk 0:02:18.3]} 22. Rxf1 {[%clk 0:01:28.6]}
22... h4 {[%clk 0:02:16.7]} 23. Qf3 {[%clk 0:01:25.5]} 23... h3 {[%clk
0:02:15.7]} 24. g3 {[%clk 0:01:20.8]} 24... Kd7 {[%clk 0:02:05.9]} 25. Qg4
{[%clk 0:01:16.2]} 25... Rcg8 {[%clk 0:02:03.1]} 26. Qf3 {[%clk 0:01:03.9]}
26... Kc8 {[%clk 0:02:00.4]} 27. Qe2 {[%clk 0:00:56.1]} 27... Kb8 {[%clk
0:01:51.4]} 28. Ra1 {[%clk 0:00:48.7]} 28... Rc8 {[%clk 0:01:38.2]} 29. a4
{[%clk 0:00:46.1]} 29... b4 {[%clk 0:01:37.7]} 30. Bxa6 {[%clk 0:00:39.9]} 30...
bxc3 {[%clk 0:01:34.8]} 31. bxc3 {[%clk 0:00:33.1]} 31... Qxc3 {[%clk
0:01:16.5]} 32. Qb5 {[%clk 0:00:20.5]} 32... Qxa1+ {[%clk 0:01:15.8]} 0-1

[Event "*** Titled Tuesday Blitz"]
[Site "Chess.com"]
[Date "2020.05.12"]
[Round "4"]
[White "Perecke"]
[Black "annacramling"]
[Result "1-0"]
[WhiteElo "2196"]
[BlackElo "1875"]
[TimeControl "180+1"]
[EndTime "10:37:35 PDT"]
[Termination "Perecke won on time"]

1. e4 {[%clk 0:03:00.9]} 1... c5 {[%clk 0:02:59.9]} 2. Nf3 {[%clk 0:02:58.7]}
2... Nc6 {[%clk 0:02:51.9]} 3. d4 {[%clk 0:02:55.9]} 3... cxd4 {[%clk
0:02:52.8]} 4. Nxd4 {[%clk 0:02:56.6]} 4... a6 {[%clk 0:02:42.7]} 5. c4 {[%clk
0:02:51.9]} 5... e5 {[%clk 0:02:41.4]} 6. Nb3 {[%clk 0:02:49.3]} 6... Nf6 {[%clk
0:02:40]} 7. Bd3 {[%clk 0:02:45.2]} 7... d6 {[%clk 0:02:29.2]} 8. O-O {[%clk
0:02:42]} 8... Be7 {[%clk 0:02:22.4]} 9. Nc3 {[%clk 0:02:40.6]} 9... O-O {[%clk
0:02:21.5]} 10. h3 {[%clk 0:02:39.7]} 10... Be6 {[%clk 0:02:20.1]} 11. Be3
{[%clk 0:02:38.5]} 11... Rc8 {[%clk 0:02:17.1]} 12. Rc1 {[%clk 0:02:34.9]} 12...
Nb4 {[%clk 0:02:13.3]} 13. Nd5 {[%clk 0:02:21.9]} 13... Nxa2 {[%clk 0:01:47.9]}
14. Ra1 {[%clk 0:02:12.5]} 14... Bxd5 {[%clk 0:01:44.9]} 15. cxd5 {[%clk
0:02:08.6]} 15... Nb4 {[%clk 0:01:44.7]} 16. Bb1 {[%clk 0:02:07.6]} 16... Nd7
{[%clk 0:01:08.8]} 17. Qd2 {[%clk 0:01:59.8]} 17... a5 {[%clk 0:01:04.3]} 18.
Nxa5 {[%clk 0:01:54.8]} 18... Na6 {[%clk 0:01:04.2]} 19. Nxb7 {[%clk 0:01:54.9]}
19... Qc7 {[%clk 0:01:01.5]} 20. Na5 {[%clk 0:01:50.3]} 20... Nac5 {[%clk
0:00:54.2]} 21. Nc6 {[%clk 0:01:48.4]} 21... Bf6 {[%clk 0:00:53]} 22. Ra7 {[%clk
0:01:43.1]} 22... Nb7 {[%clk 0:00:37.4]} 23. Bd3 {[%clk 0:01:29.6]} 23... Ra8
{[%clk 0:00:30]} 24. Rfa1 {[%clk 0:01:28.9]} 24... Rxa7 {[%clk 0:00:17.5]} 25.
Rxa7 {[%clk 0:01:29.8]} 25... Qc8 {[%clk 0:00:14.7]} 26. Ba6 {[%clk 0:01:25.6]}
26... Ndc5 {[%clk 0:00:10.5]} 27. Bxc5 {[%clk 0:01:21.8]} 27... dxc5 {[%clk
0:00:10.4]} 28. Rxb7 {[%clk 0:01:21.1]} 28... Qa8 {[%clk 0:00:06.5]} 29. Qa5
{[%clk 0:01:18.3]} 29... Rc8 {[%clk 0:00:02.5]} 30. Qb6 {[%clk 0:01:17.7]} 30...
g6 {[%clk 0:00:01.8]} 31. Ra7 {[%clk 0:01:16.8]} 1-0

[Event "*** Titled Tuesday Blitz"]
[Site "Chess.com"]
[Date "2020.05.12"]
[Round "4"]
[White "Azoulas1"]
[Black "kingmonkey2006"]
[Result "0-1"]
[WhiteElo "1914"]
[BlackElo "2657"]
[TimeControl "180+1"]
[EndTime "10:37:37 PDT"]
[Termination "kingmonkey2006 won by checkmate"]

1. e4 {[%clk 0:03:00.9]} 1... d6 {[%clk 0:03:00.6]} 2. d4 {[%clk 0:02:59]} 2...
Nd7 {[%clk 0:03:01.5]} 3. f4 {[%clk 0:02:56.9]} 3... e5 {[%clk 0:03:02.4]} 4.
Nf3 {[%clk 0:02:48.1]} 4... exd4 {[%clk 0:02:58.7]} 5. Nxd4 {[%clk 0:02:45.7]}
5... Ngf6 {[%clk 0:02:58.7]} 6. Nc3 {[%clk 0:02:44]} 6... Be7 {[%clk 0:02:58.6]}
7. Be3 {[%clk 0:02:42.4]} 7... O-O {[%clk 0:02:58]} 8. g4 {[%clk 0:02:41.3]}
8... Nc5 {[%clk 0:02:57.7]} 9. g5 {[%clk 0:02:33.9]} 9... Nfxe4 {[%clk
0:02:57.6]} 10. Nxe4 {[%clk 0:02:32.2]} 10... Nxe4 {[%clk 0:02:58.5]} 11. Bg2
{[%clk 0:02:31.8]} 11... d5 {[%clk 0:02:57.7]} 12. Qd3 {[%clk 0:02:30.3]} 12...
c5 {[%clk 0:02:56.1]} 13. Nb5 {[%clk 0:02:24.5]} 13... Bf5 {[%clk 0:02:50]} 14.
O-O-O {[%clk 0:02:15.7]} 14... a6 {[%clk 0:02:20.9]} 15. Qxd5 {[%clk 0:02:08.7]}
15... Qxd5 {[%clk 0:02:04.3]} 16. Rxd5 {[%clk 0:02:06.5]} 16... g6 {[%clk
0:02:05.2]} 17. Re5 {[%clk 0:01:52]} 17... axb5 {[%clk 0:02:03.7]} 18. Bxe4
{[%clk 0:01:50.4]} 18... Bxe4 {[%clk 0:02:03.6]} 19. Rxe4 {[%clk 0:01:49.6]}
19... Rxa2 {[%clk 0:02:04]} 20. Kd2 {[%clk 0:01:28.3]} 20... Rd8+ {[%clk
0:02:03]} 21. Ke2 {[%clk 0:01:25.7]} 21... Bf8 {[%clk 0:02:01.3]} 22. Rb1 {[%clk
0:01:20.4]} 22... c4 {[%clk 0:01:59]} 23. Re5 {[%clk 0:01:17.5]} 23... b4 {[%clk
0:01:57.7]} 24. Rb5 {[%clk 0:01:16.7]} 24... c3 {[%clk 0:01:57.9]} 25. bxc3
{[%clk 0:01:09.7]} 25... Rxc2+ {[%clk 0:01:58.8]} 26. Kf3 {[%clk 0:01:08.4]}
26... Rxc3 {[%clk 0:01:58.8]} 27. Rxb7 {[%clk 0:01:06.2]} 27... Re8 {[%clk
0:01:58.6]} 28. Re1 {[%clk 0:01:01.9]} 28... Bc5 {[%clk 0:01:58.6]} 29. Rc7
{[%clk 0:00:50.4]} 29... Rcxe3+ {[%clk 0:01:56.9]} 30. Rxe3 {[%clk 0:00:49.3]}
30... Rxe3+ {[%clk 0:01:57.8]} 31. Kf2 {[%clk 0:00:48.7]} 31... Rc3+ {[%clk
0:01:56.6]} 32. Ke2 {[%clk 0:00:47.5]} 32... Bf8 {[%clk 0:01:57.5]} 33. Rxc3
{[%clk 0:00:45.1]} 33... bxc3 {[%clk 0:01:58.4]} 34. Kd3 {[%clk 0:00:44.7]}
34... Bd6 {[%clk 0:01:58.5]} 35. Kxc3 {[%clk 0:00:43.1]} 35... Bxf4 {[%clk
0:01:58.3]} 36. h4 {[%clk 0:00:42.4]} 36... Bg3 {[%clk 0:01:58.2]} 37. Kd3
{[%clk 0:00:42.7]} 37... Bxh4 {[%clk 0:01:58.6]} 38. Ke4 {[%clk 0:00:43.1]}
38... Bxg5 {[%clk 0:01:59.5]} 39. Kf3 {[%clk 0:00:42.3]} 39... f5 {[%clk
0:02:00.4]} 40. Kg3 {[%clk 0:00:40.6]} 40... h5 {[%clk 0:02:01.3]} 41. Kf3
{[%clk 0:00:40.3]} 41... Kg7 {[%clk 0:02:02.2]} 42. Kg3 {[%clk 0:00:33.7]} 42...
Kf6 {[%clk 0:02:03.1]} 43. Kf3 {[%clk 0:00:33.2]} 43... f4 {[%clk 0:02:04]} 44.
Kg2 {[%clk 0:00:32.8]} 44... Kf5 {[%clk 0:02:04.9]} 45. Kf3 {[%clk 0:00:32.4]}
45... h4 {[%clk 0:02:05.8]} 46. Kf2 {[%clk 0:00:31.5]} 46... Kg4 {[%clk
0:02:06.3]} 47. Kg2 {[%clk 0:00:31.3]} 47... h3+ {[%clk 0:02:07.2]} 48. Kh2
{[%clk 0:00:31.2]} 48... f3 {[%clk 0:02:08.1]} 49. Kg1 {[%clk 0:00:30.7]} 49...
Bf4 {[%clk 0:02:09]} 50. Kh1 {[%clk 0:00:29.7]} 50... Bg3 {[%clk 0:02:09.1]} 51.
Kg1 {[%clk 0:00:29]} 51... f2+ {[%clk 0:02:08.5]} 52. Kf1 {[%clk 0:00:28.1]}
52... h2 {[%clk 0:02:07.9]} 53. Ke2 {[%clk 0:00:27.8]} 53... h1=Q {[%clk
0:02:07.9]} 54. Kd3 {[%clk 0:00:26.9]} 54... Qd5+ {[%clk 0:02:06.9]} 55. Ke3
{[%clk 0:00:26]} 55... Qf3+ {[%clk 0:02:05.5]} 56. Kd2 {[%clk 0:00:23.9]} 56...
f1=Q {[%clk 0:02:06.4]} 57. Kc2 {[%clk 0:00:23.4]} 57... Q1e2+ {[%clk
0:02:06.8]} 58. Kb1 {[%clk 0:00:22]} 58... Qff1# {[%clk 0:02:07.7]} 0-1

[Event "*** Titled Tuesday Blitz"]
[Site "Chess.com"]
[Date "2020.05.12"]
[Round "4"]
[White "IMTominho"]
[Black "FelixBlohberger"]
[Result "1-0"]
[WhiteElo "2839"]
[BlackElo "2624"]
[TimeControl "180+1"]
[EndTime "10:37:38 PDT"]
[Termination "IMTominho won by resignation"]

1. d4 {[%clk 0:03:00.9]} 1... Nf6 {[%clk 0:02:51.9]} 2. Bg5 {[%clk 0:03:00.3]}
2... e6 {[%clk 0:02:50.3]} 3. Nd2 {[%clk 0:02:59.3]} 3... d5 {[%clk 0:02:49.4]}
4. Ngf3 {[%clk 0:02:56.6]} 4... Nbd7 {[%clk 0:02:47.2]} 5. e3 {[%clk 0:02:47.1]}
5... c5 {[%clk 0:02:46.5]} 6. c3 {[%clk 0:02:46.3]} 6... Qc7 {[%clk 0:02:43.2]}
7. Bd3 {[%clk 0:02:41.4]} 7... h6 {[%clk 0:02:42.8]} 8. Bh4 {[%clk 0:02:40.3]}
8... Bd6 {[%clk 0:02:42.7]} 9. O-O {[%clk 0:02:31.6]} 9... O-O {[%clk
0:02:42.2]} 10. Rc1 {[%clk 0:02:27.9]} 10... b6 {[%clk 0:02:38.6]} 11. c4 {[%clk
0:02:17.2]} 11... Bb7 {[%clk 0:02:36.2]} 12. cxd5 {[%clk 0:02:15.5]} 12... exd5
{[%clk 0:02:35.7]} 13. dxc5 {[%clk 0:02:03]} 13... bxc5 {[%clk 0:02:33.4]} 14.
Bf5 {[%clk 0:02:03.1]} 14... g6 {[%clk 0:02:26]} 15. Bxd7 {[%clk 0:01:52]} 15...
Nxd7 {[%clk 0:02:26.9]} 16. Bg3 {[%clk 0:01:52.3]} 16... Bxg3 {[%clk 0:02:25.4]}
17. hxg3 {[%clk 0:01:53.2]} 17... Qb6 {[%clk 0:02:21.2]} 18. Qa4 {[%clk
0:01:45]} 18... Rfd8 {[%clk 0:02:13.5]} 19. Nb3 {[%clk 0:01:40]} 19... Rac8
{[%clk 0:02:10.5]} 20. Rfd1 {[%clk 0:01:38.1]} 20... Nf8 {[%clk 0:01:55]} 21.
Qf4 {[%clk 0:01:25.3]} 21... Kg7 {[%clk 0:01:40.1]} 22. Ne5 {[%clk 0:01:24.4]}
22... f6 {[%clk 0:00:58.7]} 23. Nf3 {[%clk 0:01:17.6]} 23... Ne6 {[%clk
0:00:55.4]} 24. Qa4 {[%clk 0:01:13.7]} 24... Ng5 {[%clk 0:00:46.7]} 25. Nxg5
{[%clk 0:01:02.9]} 25... hxg5 {[%clk 0:00:46.3]} 26. Qa3 {[%clk 0:01:03.5]}
26... Qb4 {[%clk 0:00:25]} 27. Nxc5 {[%clk 0:01:00.3]} 27... Qxa3 {[%clk
0:00:24.4]} 28. bxa3 {[%clk 0:00:59.1]} 1-0

[Event "*** Titled Tuesday Blitz"]
[Site "Chess.com"]
[Date "2020.05.12"]
[Round "4"]
[White "LLRChess"]
[Black "Firouzja2003"]
[Result "0-1"]
[WhiteElo "2555"]
[BlackElo "3148"]
[TimeControl "180+1"]
[EndTime "10:37:38 PDT"]
[Termination "Firouzja2003 won by resignation"]

1. Nf3 {[%clk 0:03:00.9]} 1... d5 {[%clk 0:02:59.6]} 2. g3 {[%clk 0:03:01.5]}
2... g6 {[%clk 0:02:59.7]} 3. Bg2 {[%clk 0:03:02.1]} 3... Bg7 {[%clk 0:03:00.3]}
4. O-O {[%clk 0:03:02.5]} 4... c5 {[%clk 0:03:00.8]} 5. d3 {[%clk 0:03:02.4]}
5... Nc6 {[%clk 0:03:01.2]} 6. e4 {[%clk 0:03:02.2]} 6... e6 {[%clk 0:02:59.4]}
7. exd5 {[%clk 0:03:00.7]} 7... exd5 {[%clk 0:03:00.3]} 8. Nc3 {[%clk
0:03:00.3]} 8... Nge7 {[%clk 0:03:00.5]} 9. Bf4 {[%clk 0:02:59.9]} 9... h6
{[%clk 0:03:00.1]} 10. Re1 {[%clk 0:02:46.5]} 10... g5 {[%clk 0:02:58.6]} 11.
Bd2 {[%clk 0:02:29]} 11... O-O {[%clk 0:02:57.9]} 12. h3 {[%clk 0:02:24.9]}
12... Ng6 {[%clk 0:02:57.3]} 13. Nh2 {[%clk 0:02:21.2]} 13... Be6 {[%clk
0:02:56.6]} 14. Rb1 {[%clk 0:02:15.5]} 14... Qd7 {[%clk 0:02:56.4]} 15. Qh5
{[%clk 0:02:10.6]} 15... Nd4 {[%clk 0:02:46.7]} 16. Ng4 {[%clk 0:02:05]} 16...
Nf5 {[%clk 0:02:43.4]} 17. h4 {[%clk 0:01:51.1]} 17... gxh4 {[%clk 0:02:05.2]}
18. Nxh6+ {[%clk 0:01:38.7]} 18... Nxh6 {[%clk 0:02:03.1]} 19. Bxh6 {[%clk
0:01:38.5]} 19... hxg3 {[%clk 0:01:59.9]} 20. fxg3 {[%clk 0:01:28]} 20... Rad8
{[%clk 0:01:40.2]} 21. Rxe6 {[%clk 0:01:10.9]} 21... Qxe6 {[%clk 0:01:38.9]} 22.
Bxd5 {[%clk 0:01:10.6]} 22... Qf6 {[%clk 0:01:23]} 23. Bxg7 {[%clk 0:01:04.1]}
23... Kxg7 {[%clk 0:01:22.1]} 24. Rf1 {[%clk 0:00:58]} 24... Qe5 {[%clk
0:01:20.6]} 25. Qxe5+ {[%clk 0:00:47.7]} 25... Nxe5 {[%clk 0:01:21.5]} 26. Bxb7
{[%clk 0:00:46.3]} 26... c4 {[%clk 0:01:20.3]} 27. dxc4 {[%clk 0:00:39.4]} 27...
Nxc4 {[%clk 0:01:21.2]} 28. b3 {[%clk 0:00:26.4]} 28... Ne3 {[%clk 0:01:20.7]}
29. Rf2 {[%clk 0:00:24.5]} 29... f5 {[%clk 0:01:20.5]} 30. Bg2 {[%clk
0:00:16.2]} 30... Ng4 {[%clk 0:01:19.4]} 31. Re2 {[%clk 0:00:15.9]} 31... Rfe8
{[%clk 0:01:20]} 32. Rxe8 {[%clk 0:00:14.9]} 32... Rxe8 {[%clk 0:01:20.9]} 33.
Kf1 {[%clk 0:00:14.9]} 33... Re3 {[%clk 0:01:21]} 34. Ne2 {[%clk 0:00:14]} 34...
Kf6 {[%clk 0:01:21.5]} 35. c4 {[%clk 0:00:13.3]} 35... Rd3 {[%clk 0:01:21.8]}
36. Nf4 {[%clk 0:00:11.6]} 36... Rd2 {[%clk 0:01:21.4]} 37. Nd5+ {[%clk
0:00:11]} 37... Ke5 {[%clk 0:01:21.9]} 38. Bf3 {[%clk 0:00:11.4]} 38... Nh2+
{[%clk 0:01:21.8]} 39. Ke1 {[%clk 0:00:10.5]} 39... Nxf3+ {[%clk 0:01:22.7]} 0-1

[Event "*** Titled Tuesday Blitz"]
[Site "Chess.com"]
[Date "2020.05.12"]
[Round "4"]
[White "Funo09"]
[Black "ehrenfeld"]
[Result "1-0"]
[WhiteElo "2724"]
[BlackElo "2499"]
[TimeControl "180+1"]
[EndTime "10:37:38 PDT"]
[Termination "Funo09 won by resignation"]

1. e4 {[%clk 0:03:00.9]} 1... e5 {[%clk 0:02:59.2]} 2. Nf3 {[%clk 0:03:00.5]}
2... Nc6 {[%clk 0:02:59.1]} 3. Bb5 {[%clk 0:03:01]} 3... a6 {[%clk 0:02:59.1]}
4. Ba4 {[%clk 0:03:01.5]} 4... Nf6 {[%clk 0:02:59.4]} 5. O-O {[%clk 0:03:01.3]}
5... Be7 {[%clk 0:02:59.8]} 6. Re1 {[%clk 0:03:01.5]} 6... b5 {[%clk 0:03:00]}
7. Bb3 {[%clk 0:03:02.1]} 7... d6 {[%clk 0:03:00.5]} 8. c3 {[%clk 0:03:02]} 8...
O-O {[%clk 0:03:00.3]} 9. d4 {[%clk 0:03:02.5]} 9... Bg4 {[%clk 0:02:59.5]} 10.
Be3 {[%clk 0:03:03]} 10... exd4 {[%clk 0:02:58.3]} 11. cxd4 {[%clk 0:03:03.9]}
11... Na5 {[%clk 0:02:58.2]} 12. h3 {[%clk 0:03:02.6]} 12... Nxb3 {[%clk
0:02:54]} 13. axb3 {[%clk 0:03:03.5]} 13... Bh5 {[%clk 0:02:52]} 14. Nbd2 {[%clk
0:03:03.9]} 14... c5 {[%clk 0:02:47.1]} 15. g4 {[%clk 0:02:42.4]} 15... Bg6
{[%clk 0:02:46.4]} 16. Nh4 {[%clk 0:02:42.5]} 16... d5 {[%clk 0:02:15.1]} 17.
Nxg6 {[%clk 0:02:29]} 17... hxg6 {[%clk 0:02:15.2]} 18. e5 {[%clk 0:02:29.9]}
18... Nd7 {[%clk 0:02:14.5]} 19. f4 {[%clk 0:02:14.2]} 19... cxd4 {[%clk
0:02:05.9]} 20. Bxd4 {[%clk 0:02:15.1]} 20... Bc5 {[%clk 0:02:05.6]} 21. Nf3
{[%clk 0:02:14.9]} 21... Qe7 {[%clk 0:01:37.7]} 22. Kg2 {[%clk 0:02:03.9]} 22...
Bxd4 {[%clk 0:01:33.7]} 23. Qxd4 {[%clk 0:01:59.4]} 23... Nc5 {[%clk 0:01:33.7]}
24. Qb4 {[%clk 0:01:39.9]} 24... Qa7 {[%clk 0:01:09.1]} 25. Rad1 {[%clk
0:01:36.4]} 25... Rad8 {[%clk 0:01:00.6]} 26. Qd4 {[%clk 0:01:31.1]} 26... Qe7
{[%clk 0:00:57.5]} 27. f5 {[%clk 0:01:12.9]} 27... gxf5 {[%clk 0:00:53.3]} 28.
gxf5 {[%clk 0:01:13.8]} 28... Nxb3 {[%clk 0:00:52]} 29. f6 {[%clk 0:01:03.7]}
29... Qe6 {[%clk 0:00:39.8]} 30. Qe3 {[%clk 0:01:03.4]} 1-0